bitfinex/quotes_SOLUSD_20260203
["timestamp","ask_amount","ask_price","bid_price","bid_amount"]
[1770084215192,0.47582997,104.21,104.18,0.47601349]
[1770084215492,0.47582997,104.21,104.18,10.07470919]
[1770084215989,17.66924655,104.21,104.18,0.47601349]
[1770084219187,8.0730416,104.2,104.17,0.47601349]
[1770084219501,0.47582997,104.17,104.13,0.2]
[1770084219674,8.0730416,104.14,104.13,0.2]
[1770084219870,8.0730416,104.14,104.1,10.28168183]
[1770084220090,7.59721163,104.13,104.1,10.28168183]
[1770084222396,17.20066643,104.13,104.1,0.67601349]
[1770084222597,7.59721163,104.12,104.1,0.2]
[1770084222980,7.59721163,104.12,104.1,0.67601349]
[1770084223783,17.20105979,104.13,104.1,0.67601349]
[1770084224501,17.21068221,104.13,104.1,0.67601349]
[1770084225506,7.60683405,104.13,104.1,0.67601349]
[1770084226383,2.83987104,104.13,104.1,0.67601349]
[1770084226592,3.15358317,104.14,104.11,0.47601349]
[1770084226898,12.75511941,104.15,104.11,0.47601349]
[1770084227094,12.75511941,104.15,104.11,10.08101815]
[1770084227293,12.75511941,104.15,104.11,0.47601349]
[1770084228403,7.92152,104.12,104.1,0.2]
[1770084228781,7.60780787,104.12,104.1,0.2]
[1770084230279,17.21246167,104.12,104.1,0.2]
[1770084231501,17.52535895,104.13,104.1,0.67107521]
[1770084232684,17.21052914,104.14,104.11,0.47107521]
[1770084232883,17.20981636,104.15,104.11,0.47107521]
[1770084233280,17.52352849,104.15,104.11,0.47107521]
[1770084234190,17.52260093,104.16,104.13,0.47107521]
[1770084237008,7.60780787,104.14,104.11,10.07605425]
[1770084237188,0.31371213,104.14,104.11,0.47107521]
[1770084237388,7.92152,104.14,104.11,0.47107521]
[1770084240587,7.60780787,104.14,104.11,10.07627424]
[1770084240883,17.21003036,104.15,104.12,0.47107521]
[1770084241107,23.32005237,104.17,104.14,0.47107521]
[1770084241414,23.6337645,104.17,104.14,0.47107521]
[1770084241600,23.6337645,104.17,104.13,0.47107521]
[1770084241801,23.32005237,104.17,104.14,0.47107521]
[1770084242004,7.92152,104.16,104.13,0.47107521]
[1770084242715,47.63299652,104.17,104.14,0.47107521]
[1770084244319,7.60780787,104.16,104.14,0.47107521]
[1770084244704,47.63299652,104.17,104.14,0.47107521]
[1770084244896,7.60780787,104.16,104.14,0.47107521]
[1770084245094,0.31371213,104.14,104.11,0.47107521]
[1770084245298,39.71147652,104.17,104.1,0.67107521]
[1770084245299,7.92152,104.13,104.1,0.67107521]
[1770084245910,7.60780787,104.13,104.1,10.27711118]
[1770084246233,7.60780787,104.13,104.1,0.67107521]
[1770084246620,7.92152,104.13,104.1,0.67107521]
[1770084246915,17.52572848,104.13,104.1,0.67107521]
[1770084247713,17.21201635,104.13,104.1,0.67107521]
[1770084248507,17.21201635,104.13,104.11,0.47107521]
[1770084249213,7.92152,104.15,104.12,0.47107521]
[1770084249415,17.20934411,104.15,104.12,0.47107521]
[1770084249719,9.60153624,104.15,104.12,0.47107521]
[1770084250512,17.52305624,104.15,104.12,0.47107521]
[1770084250916,9.60067061,104.16,104.13,0.47107521]
[1770084251412,7.60780787,104.17,104.13,0.5]
[1770084251616,7.60780787,104.15,104.12,0.5]
[1770084253918,17.20954569,104.15,104.12,0.5]
[1770084254503,7.60780787,104.14,104.11,0.5]
[1770084254717,7.60780787,104.13,104.11,0.5]
[1770084254920,7.60780787,104.13,104.1,0.7]
[1770084255918,17.21154068,104.13,104.1,0.7]
[1770084258538,7.60780787,104.12,104.1,0.2]
[1770084258832,7.60780787,104.11,104.1,0.2]
[1770084259230,7.60780787,104.1,104.07,60.07311011]
[1770084259529,7.60780787,104.1,104.07,0.7]
[1770084259952,7.60780787,104.12,104.09,0.5]
[1770084260247,7.60780787,104.11,104.08,0.5]
[1770084260729,7.60780787,104.11,104.09,0.5]
[1770084261030,17.21305755,104.11,104.09,0.5]
[1770084263320,7.60780787,104.13,104.09,0.5]
[1770084263942,7.60780787,104.12,104.09,0.5]
[1770084264117,7.60780787,104.11,104.09,0.5]
[1770084264435,7.60780787,104.12,104.09,0.5]
[1770084264934,7.60780787,104.13,104.09,0.5]
[1770084265136,41.21641166,104.14,104.1,0.5]
[1770084265435,7.60780787,104.13,104.1,0.5]
[1770084265932,7.60780787,104.13,104.11,0.5]
[1770084267040,17.21131885,104.13,104.11,0.5]
[1770084270338,4.27527085,104.15,104.12,0.46285246]
[1770084270339,7.60780787,104.15,104.12,0.46285246]
[1770084270526,2.83866128,104.15,104.12,0.46285246]
[1770084271227,0.47576914,104.12,104.09,0.46285246]
[1770084271425,2.83866128,104.13,104.1,10.06897732]
[1770084271426,0.47576914,104.13,104.1,10.06897732]
[1770084271621,0.47576914,104.13,104.1,0.46285246]
[1770084271622,3.31443042,104.13,104.1,0.46285246]
[1770084272247,12.442964,104.12,104.1,0.46285246]
[1770084272948,12.442964,104.12,104.09,0.46285246]
[1770084273144,12.91873314,104.12,104.09,0.46285246]
[1770084274325,17.68891132,104.12,104.09,0.46285246]
[1770084274726,17.21314218,104.12,104.09,0.46285246]
[1770084274938,9.60430272,104.12,104.09,0.46285246]
[1770084275144,17.21314218,104.12,104.09,0.46285246]
[1770084275952,7.60883946,104.13,104.1,0.46285246]
[1770084276149,8.0846086,104.15,104.11,0.46285246]
[1770084276447,17.68614484,104.15,104.11,0.46285246]
[1770084277544,8.0846086,104.13,104.1,10.06832215]
[1770084277730,8.0846086,104.13,104.1,0.46285246]
[1770084278450,0.47576914,104.13,104.1,0.46285246]
[1770084278644,10.07920506,104.13,104.1,0.46285246]
[1770084278854,17.68804452,104.13,104.1,0.46285246]
[1770084281047,9.60292975,104.14,104.11,0.46285246]
[1770084281356,0.47576914,104.13,104.1,0.46285246]
[1770084281550,8.0846086,104.13,104.1,0.46285246]
[1770084281951,8.0846086,104.12,104.09,0.46285246]
[1770084283045,17.68948007,104.12,104.09,0.46285246]
[1770084286359,17.689332,104.12,104.09,0.46285246]
[1770084287950,9.60487147,104.12,104.09,0.46285246]
[1770084288471,17.68840654,104.13,104.1,0.46285246]
[1770084289672,8.08446053,104.12,104.08,10.07045389]
[1770084289972,8.08446053,104.11,104.08,0.46285246]
[1770084290168,0.47576914,104.11,104.08,0.46285246]
[1770084290757,10.08107337,104.11,104.08,0.46285246]
[1770084290956,9.60530423,104.11,104.08,0.46285246]
[1770084292687,17.69237294,104.11,104.08,0.46285246]
[1770084293194,10.08368155,104.11,104.08,0.46285246]
[1770084294776,9.60530423,104.11,104.08,0.46285246]
[1770084294986,9.60530423,104.11,104.09,0.49680125]
[1770084295479,17.69171676,104.12,104.09,0.49680125]
[1770084295792,9.60464805,104.12,104.09,0.49680125]
[1770084296605,10.08302537,104.12,104.09,0.49680125]
[1770084297282,12.92312467,104.12,104.09,0.49680125]
[1770084299881,36.93388148,104.12,104.09,0.49680125]
[1770084300289,10.08302537,104.12,104.09,0.49680125]
[1770084300791,2.8400993,104.11,104.09,0.49680125]
[1770084300996,10.08302537,104.12,104.09,0.49680125]
[1770084300997,12.92312467,104.12,104.09,0.49680125]
[1770084301378,0.47837732,104.09,104.07,0.2]
[1770084301580,0.47837732,104.09,104.05,0.2]
[1770084301581,0.47837732,104.07,104.05,0.2]
[1770084301796,12.75010745,104.06,104.04,0.2]
[1770084302098,2.8400993,104.05,104.03,10.30939837]
[1770084302292,12.75010745,104.06,104.03,0.69680125]
[1770084302524,2.8400993,104.05,104.03,0.2]
[1770084302688,2.8400993,104.05,104.01,9.8140161]
[1770084302689,3.1400993,104.04,104.01,0.69680125]
[1770084302879,2.8400993,104.03,104.01,0.69680125]
[1770084303077,0.3,104.01,103.99,0.2]
[1770084303283,3.1400993,104.01,103.99,0.2]
[1770084303483,2.8400993,104.03,104.0,0.49680125]
[1770084303796,12.75357864,104.03,104.0,0.49680125]
[1770084303995,2.8400993,104.01,103.99,0.69680125]
[1770084304292,0.3,104.02,103.99,0.2]
[1770084304493,2.8400993,104.01,103.99,0.2]
[1770084304802,12.45357864,104.03,104.0,0.49680125]
[1770084305179,3.1400993,104.02,103.99,0.2]
[1770084305396,2.8400993,104.0,103.99,0.2]
[1770084306390,2.8400993,104.01,103.99,0.2]
[1770084306598,2.8400993,104.01,103.99,0.69680125]
[1770084306797,12.75410905,104.02,103.99,0.69680125]
[1770084307709,2.8400993,104.01,103.99,0.69680125]
[1770084307888,61.16211887,104.01,103.97,12.77579089]
[1770084309896,71.25516899,104.01,103.98,0.49680125]
[1770084310099,0.47837732,103.98,103.92,0.1]
[1770084310407,2.8400993,103.94,103.92,9.7224041]
[1770084310697,0.47837732,103.95,103.92,10.21920535]
[1770084310896,0.47837732,103.95,103.92,34.27617224]
[1770084311100,0.47837732,103.96,103.93,0.49680125]
[1770084311403,2.8400993,103.95,103.93,0.49680125]
[1770084312175,58.21865932,103.95,103.94,0.49680125]
[1770084312406,57.70070893,103.95,103.94,0.49680125]
[1770084312611,57.20070893,103.95,103.94,0.49680125]
[1770084314200,57.20070893,103.95,103.94,10.1177364]
[1770084314403,0.47837732,103.98,103.94,17.25214609]
[1770084314605,44.20037024,103.98,103.94,41.30448397]
[1770084316193,44.20037024,103.98,103.96,7.63121094]
[1770084316401,44.20037024,103.98,103.94,33.67327303]
[1770084316402,44.20037024,103.98,103.95,0.28432314]
[1770084316599,44.20037024,103.98,103.95,7.91553408]
[1770084316795,44.20037024,103.98,103.96,7.63121094]
[1770084317412,35.45965644,103.99,103.96,7.63121094]
[1770084318406,35.45965644,103.99,103.96,17.24978912]
[1770084319617,35.45965644,103.99,103.96,33.66628883]
[1770084319819,35.45965644,103.99,103.96,41.29749977]
[1770084320315,35.45965644,103.99,103.96,17.24978912]
[1770084321809,43.59086738,103.99,103.95,9.61920449]
[1770084322018,17.22399329,104.02,103.98,7.63121094]
[1770084322197,24.85520423,104.02,103.98,7.63121094]
[1770084322397,17.22399329,104.02,103.98,7.63121094]
[1770084322812,34.46900977,104.02,103.98,17.24820677]
[1770084323517,0.5,104.01,103.98,9.61699583]
[1770084326200,8.13121094,104.0,103.96,17.24983771]
[1770084326592,0.5,104.0,103.96,17.24983771]
[1770084326799,0.5,103.99,103.96,9.61862677]
[1770084327004,8.13121094,103.99,103.96,9.61862677]
[1770084327198,17.74758462,103.99,103.96,9.61862677]
[1770084327403,17.74706077,104.0,103.96,9.61862677]
[1770084328520,0.5,103.99,103.96,9.61862677]
[1770084329100,17.74608161,104.01,103.96,41.29754836]
[1770084330421,0.5,104.0,103.96,41.29754836]
[1770084330621,0.5,104.0,103.96,17.24983771]
[1770084331018,10.11548804,104.0,103.96,17.24983771]
[1770084331204,0.5,104.0,103.96,17.24983771]
[1770084331400,10.11552111,104.0,103.96,41.29754836]
[1770084331909,17.74673205,104.0,103.96,17.24983771]
[1770084332500,10.11552111,104.0,103.96,17.24983771]
[1770084332699,0.5,104.0,103.96,17.24983771]
[1770084334113,34.46918731,104.02,103.97,7.63121094]
[1770084334430,0.5,104.01,103.98,2.8455154]
[1770084334614,0.5,104.01,103.97,2.8455154]
[1770084335320,0.5,104.0,103.96,33.66633742]
[1770084335535,0.5,103.99,103.96,9.61862677]
[1770084336037,0.5,104.0,103.96,12.46414217]
[1770084336401,0.5,104.0,103.96,9.61862677]
[1770084336402,3.3455154,104.0,103.96,9.61862677]
[1770084337410,12.9614077,104.0,103.96,9.61862677]
[1770084338310,10.1158923,104.0,103.96,12.46414217]
[1770084340509,0.5,104.0,103.96,36.51185282]
[1770084340935,0.5,104.01,103.97,2.8455154]
[1770084341246,16.72399329,104.02,104.0,2.8455154]
[1770084341529,10.11020134,104.06,104.01,2.8455154]
[1770084341726,10.11020134,104.06,104.02,2.8455154]
[1770084342324,0.5,104.06,104.03,9.61261174]
[1770084342621,10.10997091,104.06,104.02,17.22852871]
[1770084343126,0.5,104.06,104.02,41.26236835]
[1770084343305,17.22489246,104.07,104.03,7.61553303]
[1770084343306,0.5,104.07,104.03,7.61553303]
[1770084344326,18.0428755,104.08,104.04,7.61553303]
[1770084344525,18.0428755,104.08,104.04,17.22661022]
[1770084344831,18.0428755,104.08,104.05,7.61553303]
[1770084344832,8.43449463,104.08,104.05,7.61553303]
[1770084345011,8.43449463,104.08,104.04,41.25582975]
[1770084345816,8.43449463,104.08,104.05,7.61553303]
[1770084346115,7.93449463,104.08,104.05,7.61553303]
[1770084346632,7.93449463,104.08,104.05,17.22136404]
[1770084347331,7.93449463,104.08,104.05,9.61004916]
[1770084347719,7.93449463,104.08,104.05,17.22136404]
[1770084348138,1e-08,104.08,104.06,7.61131488]
[1770084348734,1e-08,104.08,104.06,9.60942454]
[1770084348936,8.11131489,104.08,104.03,58.36198736]
[1770084350430,8.11131489,104.08,104.04,9.61168781]
[1770084350739,0.5,104.06,104.03,9.61211515]
[1770084351039,0.5,104.05,104.02,9.61270283]
[1770084351250,8.11131488,104.05,104.02,9.61270283]
[1770084351734,0.5,104.05,104.02,9.61270283]
[1770084352528,0.5,104.04,104.01,9.61408839]
[1770084359038,24.02487831,104.06,104.03,7.61131488]
[1770084359039,0.5,104.06,104.03,7.61131488]
[1770084359844,0.5,104.06,104.04,9.61168781]
[1770084360017,0.5,104.05,104.02,7.61131488]
[1770084360338,0.5,104.05,104.02,9.61315356]
[1770084360517,0.5,104.03,104.0,9.61487432]
[1770084360929,0.5,104.03,104.01,9.61436413]
[1770084361317,8.11131488,104.04,104.01,9.61436413]
[1770084361725,0.5,104.04,104.0,41.26498075]
[1770084362041,0.5,104.04,104.01,7.61131488]
[1770084362617,17.72212795,104.05,104.01,7.61131488]
[1770084362825,17.72212795,104.05,104.0,41.26498075]
[1770084363031,0.5,104.04,104.0,41.26498075]
[1770084364528,0.5,104.04,104.0,26.88221187]
[1770084365640,0.5,104.03,104.0,24.03828126]
[1770084368832,0.5,104.03,104.0,33.65366587]
[1770084369431,12.45578835,104.04,104.0,33.65366587]
[1770084369632,12.95578835,104.04,104.0,33.65366587]
[1770084370852,0.5,104.04,104.0,36.49759648]
[1770084371052,0.5,104.04,104.01,2.84393061]
[1770084372545,0.5,104.04,104.01,9.61361764]
[1770084373047,0.5,104.04,104.01,12.45754825]
[1770084374234,0.5,104.05,104.02,2.84393061]
[1770084374745,0.5,104.06,104.03,12.45654235]
[1770084378252,0.5,104.06,104.03,36.48807171]
[1770084382848,12.45235118,104.08,104.03,36.48807171]
[1770084383049,0.5,104.07,104.03,36.48807171]
[1770084383853,10.1089764,104.07,104.03,12.45654235]
[1770084384055,0.5,104.05,104.03,9.61261174]
[1770084384945,0.5,104.05,104.02,9.61305999]
[1770084385748,0.5,104.05,104.03,9.61259309]
[1770084385955,0.5,104.05,104.02,9.61353585]
[1770084389135,0.5,104.05,104.02,2.84393061]
[1770084391260,0.5,104.05,104.03,9.61261174]
[1770084391763,0.5,104.07,104.03,12.45654235]
[1770084391939,0.50000001,104.08,104.04,2.84393061]
[1770084393556,10.10804499,104.08,104.05,9.61076405]
[1770084393853,3.34393061,104.06,104.03,9.612328]
[1770084394153,0.5,104.05,104.03,9.612328]
[1770084394933,0.5,104.06,104.04,9.61136289]
[1770084395137,0.50000001,104.08,104.05,2.84393061]
[1770084395743,1e-08,104.08,104.06,9.60984047]
[1770084395944,1e-08,104.08,104.06,12.45377108]
[1770084397857,1e-08,104.08,104.06,36.47837227]
[1770084398763,1e-08,104.08,104.07,2.84393061]
[1770084399766,1e-08,104.08,104.07,12.45284768]
[1770084400578,1e-08,104.08,104.07,9.60891707]
[1770084402162,1e-08,104.08,104.07,12.45284768]
[1770084402361,0.5,104.1,104.07,36.47514036]
[1770084402556,0.5,104.1,104.08,2.84393061]
[1770084403347,0.5,104.11,104.08,2.84393061]
[1770084404950,0.5,104.11,104.09,9.6070708]
[1770084407650,0.5,104.11,104.08,12.45138846]
[1770084407850,0.5,104.1,104.07,9.60847549]
[1770084408160,0.5,104.1,104.06,12.45323851]
[1770084408356,0.5,104.1,104.07,9.60878887]
[1770084410271,0.5,104.1,104.07,12.44971297]
[1770084410469,0.5,104.09,104.06,36.47474929]
[1770084411574,0.5,104.09,104.07,2.8409241]
[1770084412469,0.5,104.09,104.06,12.45019869]
[1770084414862,0.5,104.09,104.06,9.60927459]
[1770084415573,0.5,104.09,104.06,12.45019869]
[1770084417772,0.5,104.09,104.07,2.8409241]
[1770084418078,0.5,104.09,104.07,12.44930295]
[1770084418670,0.5,104.1,104.07,36.47159563]
[1770084422181,0.5,104.1,104.08,12.44824628]
[1770084423483,0.5,104.1,104.07,12.44938011]
[1770084423667,0.5,104.08,104.05,9.61023747]
[1770084424881,0.5,104.08,104.05,12.45116157]
[1770084426781,0.5,104.08,104.05,9.61023747]
[1770084427598,0.5,104.08,104.05,12.45116157]
[1770084431101,0.5,104.08,104.06,2.8409241]
[1770084431588,0.5,104.09,104.06,2.8409241]
[1770084432595,0.5,104.09,104.07,9.60891707]
[1770084436001,0.5,104.09,104.07,12.44984117]
[1770084437177,0.5,104.09,104.06,12.45032483]
[1770084437582,0.5,104.08,104.05,9.61028456]
[1770084439101,0.5,104.07,104.04,33.64036642]
[1770084439301,0.5,104.05,103.99,11.9793705]
[1770084439592,0.5,104.04,104.01,9.6141362]
[1770084440300,0.5,104.03,104.0,9.61491171]
[1770084440513,0.5,104.01,103.97,2.8409241]
[1770084440681,0.5,104.0,103.97,9.61774918]
[1770084441392,0.5,104.0,103.98,9.61721015]
[1770084441591,0.5,104.0,103.97,9.61815908]
[1770084442697,0.5,104.0,103.92,0.1]
[1770084442698,0.485623,103.95,103.92,0.1]
[1770084442998,0.485623,103.95,103.92,3.32524724]
[1770084443201,0.485623,103.94,103.92,0.1]
[1770084444198,0.485623,103.94,103.9,9.62422349]
[1770084444199,3.3265471,103.93,103.9,9.62422349]
[1770084444900,0.485623,103.93,103.9,9.62422349]
[1770084445787,0.485623,103.93,103.9,10.08761438]
[1770084445986,0.485623,103.94,103.91,2.8409241]
[1770084446181,0.485623,103.94,103.92,2.8409241]
[1770084446385,0.485623,103.95,103.91,3.30431499]
[1770084447509,0.485623,103.95,103.91,30.00431499]
[1770084448407,0.485623,103.95,103.92,9.62278675]
[1770084448908,0.485623,103.96,103.92,12.92710174]
[1770084449505,3.3265471,103.96,103.92,10.08617764]
[1770084449692,3.3265471,103.96,103.92,36.80617764]
[1770084452304,0.485623,103.96,103.93,0.46339089]
[1770084452637,9.61771279,103.98,103.93,0.46339089]
[1770084452638,3.3265471,103.98,103.94,0.46339089]
[1770084452905,3.3265471,103.98,103.95,9.62000962]
[1770084453305,3.3265471,103.97,103.94,9.6205296]
[1770084453509,0.485623,103.96,103.94,9.6205296]
[1770084454205,3.3265471,103.97,103.94,9.6205296]
[1770084454578,3.3265471,103.97,103.94,34.13625837]
[1770084454782,0.485623,103.97,103.94,34.13625837]
[1770084455702,3.3265471,103.97,103.94,10.08392049]
[1770084457607,0.485623,103.95,103.93,9.62142315]
[1770084458115,3.3265471,103.94,103.92,36.34228163]
[1770084458415,3.3265471,103.94,103.92,9.62228163]
[1770084459715,9.62001176,103.95,103.91,36.34320443]
[1770084459716,3.3265471,103.93,103.91,36.34320443]
[1770084461112,3.3265471,103.94,103.91,36.80659532]
[1770084461524,0.485623,103.94,103.91,36.80659532]
[1770084461826,3.3265471,103.94,103.91,36.34320443]
[1770084462410,3.3265471,103.94,103.91,60.86587739]
[1770084462621,3.3265471,103.95,103.92,0.46339089]
[1770084462801,3.3265471,103.95,103.91,60.86587739]
[1770084463202,3.3265471,103.95,103.92,0.46339089]
[1770084463604,0.485623,103.96,103.93,10.08525175]
[1770084464211,0.485623,103.95,103.93,33.67651302]
[1770084465625,3.3265471,103.96,103.93,34.13990391]
[1770084466002,3.3265471,103.96,103.93,33.67651302]
[1770084466398,0.485623,103.93,103.92,9.62249471]
[1770084466622,0.485623,103.93,103.91,26.72]
[1770084466623,0.485623,103.92,103.91,26.72]
[1770084467015,3.3265471,103.92,103.91,26.72]
[1770084468418,3.33642469,103.93,103.91,9.62371282]
[1770084468725,3.33642469,103.93,103.9,36.34409742]
[1770084469529,0.485623,103.93,103.9,36.34409742]
[1770084469831,3.33642469,103.92,103.9,36.34409742]
[1770084470034,3.33642469,103.93,103.9,36.34409742]
[1770084470213,0.485623,103.93,103.9,60.89951032]
[1770084470908,0.49975156,103.94,103.91,0.49381521]
[1770084471918,0.49975156,103.94,103.92,9.62278675]
[1770084475034,0.49975156,103.95,103.92,34.17356885]
[1770084476038,3.35055325,103.95,103.92,34.17356885]
[1770084477745,0.49975156,103.94,103.92,33.67975364]
[1770084477919,0.49975156,103.94,103.92,9.62278675]
[1770084478315,0.49975156,103.93,103.92,9.62278675]
[1770084478717,0.49975156,103.93,103.9,51.27332859]
[1770084478718,0.49975156,103.92,103.9,36.34425812]
[1770084478937,3.35055325,103.92,103.9,36.34425812]
[1770084479338,0.49975156,103.92,103.9,36.34425812]
[1770084479641,3.35055325,103.93,103.91,9.62371282]
[1770084480227,0.49975156,103.92,103.9,36.34407245]
[1770084480846,0.49975156,103.91,103.9,26.72]
[1770084481021,3.35055325,103.91,103.89,0.1]
[1770084481225,2.85080169,103.9,103.86,36.88719024]
[1770084481441,2.85080169,103.88,103.85,10.2481156]
[1770084481623,2.85080169,103.9,103.86,10.14761818]
[1770084481826,2.85080169,103.91,103.87,0.51931346]
[1770084482230,2.85080169,103.9,103.87,10.14621846]
[1770084482427,2.85080169,103.89,103.86,10.14735341]
[1770084482925,2.85080169,103.9,103.86,10.14735341]
[1770084483840,2.85080169,103.9,103.87,0.51931346]
[1770084484426,12.47569104,103.9,103.87,10.14670736]
[1770084484839,2.85080169,103.89,103.86,10.14718799]
[1770084485942,12.47569104,103.9,103.86,10.14718799]
[1770084487434,2.85080169,103.91,103.87,0.51931346]
[1770084487639,2.87768396,103.92,103.88,0.51931346]
[1770084487839,2.85080169,103.92,103.89,0.51931346]
[1770084488135,9.64922213,103.93,103.9,0.51931346]
[1770084488136,2.85080169,103.93,103.9,0.51931346]
[1770084488926,12.4991182,103.94,103.9,0.51931346]
[1770084489328,12.4991182,103.94,103.9,10.14347278]
[1770084490449,2.87768396,103.94,103.9,9.62415932]
[1770084490773,2.87768396,103.94,103.91,0.51931346]
[1770084490933,12.4987231,103.94,103.91,0.51931346]
[1770084491543,12.4987231,103.94,103.9,10.14347278]
[1770084492534,2.87768396,103.94,103.9,12.99427447]
[1770084492734,2.87768396,103.94,103.9,10.14347278]
[1770084492961,12.49866745,103.94,103.9,10.14347278]
[1770084493639,12.49866745,103.94,103.9,12.99427447]
[1770084493954,2.87768396,103.94,103.91,0.51931346]
[1770084494452,2.87768396,103.94,103.91,10.1429909]
[1770084494659,12.4986317,103.94,103.91,9.9455909]
[1770084494853,2.87768396,103.94,103.91,9.9455909]
[1770084495661,3.15921927,103.93,103.9,9.6242923]
[1770084495958,3.15921927,103.93,103.89,9.62519186]
[1770084496159,2.85080169,103.92,103.89,9.62519186]
[1770084496330,3.15921927,103.92,103.89,9.62519186]
[1770084496733,3.15921927,103.92,103.89,10.11900707]
[1770084503841,0.30841758,103.92,103.89,10.11900707]
[1770084504043,3.15921927,103.92,103.89,10.11900707]
[1770084505644,3.26017123,103.93,103.9,0.53968543]
[1770084505958,3.26017123,103.93,103.91,0.53968543]
[1770084505959,2.85080169,103.93,103.91,0.53968543]
[1770084506453,2.85080169,103.93,103.9,9.62385692]
[1770084506454,3.26017123,103.93,103.9,9.62385692]
[1770084506655,3.26017123,103.93,103.9,10.16354235]
[1770084507061,3.26017123,103.93,103.89,10.16468188]
[1770084507062,3.26858686,103.92,103.89,10.16468188]
[1770084507764,2.85080169,103.92,103.9,10.16417907]
[1770084508665,3.27690583,103.93,103.9,10.16417907]
[1770084509666,12.89880526,103.93,103.9,10.16417907]
[1770084510266,3.27690583,103.93,103.9,10.16417907]
[1770084510654,12.89878835,103.93,103.9,10.16417907]
[1770084510848,0.45049211,103.92,103.9,10.16417907]
[1770084511248,12.92317632,103.93,103.9,10.16417907]
[1770084511449,3.3012938,103.93,103.9,10.16417907]
[1770084512965,0.45049211,103.93,103.91,0.53968543]
[1770084513271,12.93761834,103.95,103.92,0.53968543]
[1770084513653,3.32485102,103.93,103.9,10.16417907]
[1770084514357,3.32485102,103.94,103.91,0.53968543]
[1770084514558,2.85080169,103.93,103.91,0.53968543]
[1770084516378,12.96201811,103.93,103.9,0.53968543]
[1770084516583,3.34010833,103.93,103.9,10.1642812]
[1770084517578,3.35501716,103.92,103.89,10.16473462]
[1770084519684,2.85080169,103.91,103.89,0.53968543]
[1770084521081,10.12735682,103.92,103.89,0.53968543]
[1770084521256,2.85080169,103.91,103.89,0.53968543]
[1770084521570,12.97815851,103.92,103.89,0.53968543]
[1770084522572,2.85080169,103.91,103.89,0.53968543]
[1770084523675,10.12735682,103.92,103.89,0.53968543]
[1770084523676,12.97815851,103.92,103.89,0.53968543]
[1770084525478,9.62314135,103.92,103.89,0.53968543]
[1770084525670,2.85080169,103.91,103.89,0.53968543]
[1770084526978,13.03446553,103.92,103.89,0.53968543]
[1770084527377,3.41800367,103.91,103.88,10.16586747]
[1770084527567,13.04171996,103.91,103.88,10.16586747]
[1770084527964,3.42460644,103.9,103.87,10.1668549]
[1770084528260,3.42460644,103.88,103.85,0.63968543]
[1770084528857,3.42460644,103.88,103.85,10.26868088]
[1770084529060,2.85080169,103.88,103.86,0.53968543]
[1770084530475,2.85319696,103.88,103.86,0.53968543]
[1770084530684,13.08390957,103.9,103.87,0.67239955]
[1770084530868,3.45889523,103.9,103.87,0.67239955]
[1770084531564,2.85319696,103.9,103.88,0.67239955]
[1770084531760,13.0892279,103.91,103.88,0.67239955]
[1770084536384,13.0892279,103.91,103.87,10.2993491]
[1770084536385,3.48899871,103.9,103.87,10.2993491]
[1770084537093,0.64161658,103.88,103.85,0.77239955]
[1770084537393,3.49481354,103.88,103.85,10.40129899]
[1770084537567,2.85319696,103.87,103.85,10.40129899]
[1770084537763,2.85319696,103.88,103.86,0.67239955]
[1770084538964,13.12614396,103.89,103.86,0.67239955]
[1770084539286,2.85319696,103.88,103.86,0.67239955]
[1770084540379,3.51186036,103.88,103.86,0.67239955]
[1770084540584,3.51186036,103.89,103.86,10.30019102]
[1770084540890,0.6586634,103.89,103.87,0.67239955]
[1770084541066,3.51741261,103.9,103.87,0.67239955]
[1770084541968,3.51741261,103.9,103.87,10.299696]
[1770084542286,3.51741261,103.9,103.88,0.67239955]
[1770084542667,12.47690978,103.91,103.88,0.67239955]
[1770084542962,13.15141386,103.92,103.88,0.67239955]
[1770084543385,13.15141386,103.92,103.89,0.67239955]
[1770084543588,10.2982169,103.92,103.89,0.67239955]
[1770084543884,13.15141386,103.92,103.89,0.67239955]
[1770084544067,3.53368962,103.91,103.87,13.15251999]
[1770084544267,2.85319696,103.9,103.87,10.29932303]
[1770084544784,0.68579418,103.88,103.86,9.62790978]
[1770084544969,3.53899114,103.88,103.85,10.40115171]
[1770084545369,2.85319696,103.87,103.85,10.40115171]
[1770084545685,2.85319696,103.87,103.85,0.77239955]
[1770084545983,3.54423176,103.87,103.85,0.1]
[1770084546165,2.85319696,103.86,103.85,0.1]
[1770084546892,0.6910348,103.87,103.85,0.1]
[1770084546893,3.54423176,103.87,103.85,0.1]